Cogmind - Beta 13 *** ADVENTURER MODE // 2024.05.31 @ 05:00:26 Player: Terra Result: Destroyed by G-47 Trooper with Particle Gun Performance ------------- Evolutions (3) 1500 Regions Visited (6) 1200 Robots Destroyed (27) 135 Value Destroyed (814) 814 Prototype IDs (0) 0 Alien Tech Used (0) 0 Bonus (22) 22 TOTAL SCORE: 3671 Bonus ------- High Alert Combat Kills 22 Cogmind --------- Core Integrity 0/700 Matter 177/300 Energy 100/100 System Corruption 1% Temperature Cool (27) Movement Walking (120) Location -7/Factory Parts ------- > --- POWER (1) -------- (None) > --- PROPULSION (4) --- Improved Carbon-fiber Leg > --- UTILITY (6) ------ Visual Processing Unit Visual Processing Unit Visual Processing Unit > --- WEAPON (2) ------- Mini Grenade Launcher > --- INVENTORY (5) ---- (None) Peak State ------------ > --- POWER ------------ Light Nuclear Core > --- PROPULSION ------- Flight Unit Flight Unit Flight Unit Xenon Bombardment Thruster > --- UTILITY ---------- Visual Processing Unit Visual Processing Unit Visual Processing Unit Sensor Array Sensor Array Terrain Scan Processor > --- WEAPON ----------- Great Axe Great Axe > --- INVENTORY -------- Light Nuclear Core Mini Grenade Launcher [Rating: 28] Favorites ----------- Power Ion Engine Engine Ion Engine Power Core Light Nuclear Core Propulsion Flight Unit Leg Improved Carbon-fiber Leg Wheel Wheel Flight Unit Flight Unit Utility Visual Processing Unit Device Sensor Array Storage Small Storage Unit Processor Visual Processing Unit Weapon Medium Laser Energy Gun Medium Laser Ballistic Cannon Bore Cannon Launcher Mini Grenade Launcher Slashing Weapon Great Axe Build | -11 -10 -10 -10 -9 -8 -7 ------- Run | Yrd Mat Min Exi Min Mat Fac Slots Evolved 6 | . . . . . 4 2 Power . | . . . . . . . Propulsion 2 | . . . . . 1 1 Utility 4 | . . . . . 3 1 Weapon . | . . . . . . . Parts Attached 33 | 6 2 4 1 2 13 5 Power 5 | 1 . 1 . . 2 1 Engine 3 | 1 . 1 . . 1 . Core 2 | . . . . . 1 1 Reactor . | . . . . . . . Propulsion 12 | 2 1 2 . . 5 2 Treads . | . . . . . . . Leg 1 | . . . . . . 1 Wheel 3 | 2 . 1 . . . . Hover . | . . . . . . . Flight 8 | . 1 1 . . 5 1 Utility 8 | 1 1 . . 1 4 1 Device 3 | . . . . . 2 1 Storage 1 | 1 . . . . . . Processor 4 | . 1 . . 1 2 . Hackware . | . . . . . . . Protection . | . . . . . . . Artifact . | . . . . . . . Weapon 8 | 2 . 1 1 1 2 1 Energy Gun 3 | 2 . 1 . . . . Energy Cannon . | . . . . . . . Ballistic Gun . | . . . . . . . Ballistic Cannon 1 | . . . . 1 . . Launcher 2 | . . . 1 . . 1 Special Weapon . | . . . . . . . Impact Weapon . | . . . . . . . Slashing Weapon 2 | . . . . . 2 . Piercing Weapon . | . . . . . . . Special Melee Weapon . | . . . . . . . Unidentified Prototypes . | . . . . . . . Parts Lost 19 | . . 4 . . 5 10 Power 5 | . . 1 . . 2 2 Propulsion 9 | . . 3 . . 2 4 Utility 4 | . . . . . 1 3 Weapon 1 | . . . . . . 1 Highest Loss Streak 8 | . . 3 . . 4 8 To Critical Strikes . | . . . . . . . Average Slot Usage (%) 72 | . 66 69 70 75 82 73 Engine 10 | . 14 14 14 14 5 . Core 1 | . . . . . 1 5 Wheel 4 | . 15 12 . . . . Flight 14 | . 12 7 14 14 23 15 Device 3 | . . . . . 11 9 Processor 18 | . 7 14 14 25 27 28 Energy Gun 10 | . 15 20 14 6 . . Ballistic Cannon 1 | . . . . 7 5 . Launcher 3 | . . . 13 6 . . Slashing Weapon 2 | . . . . . 7 9 Naked Turns . | . . . . . . . Heaviest Build 18 | 12 12 9 8 14 18 15 Greatest Support 26 | 26 26 16 4 4 12 18 Greatest Overweight (x) 3 | 1 1 2 1 3 3 2 Average Overweight (x) . | . . . 1 1 . . Largest Inventory Capacity 8 | 8 8 5 5 5 5 5 Average Capacity 5 | 6 5 5 5 5 5 5 Most Carried 5 | 5 5 4 2 3 5 3 Average Carried 2 | 2 3 2 1 2 4 1 Final Capacity 8 | 8 5 5 5 5 5 5 Final Carried 4 | 2 4 2 1 3 3 . Class Distribution -------------------- 80% | Mutant 4% | Scout 4% | Scavenger-Sprinter 4% | Scavenger-Mutant 4% | Scavenger-Assassin Dominant Class ---------------- Mutant | -10/Materials Mutant | -10/Mines Mutant | -10/Exiles Mutant | -9/Mines Mutant | -8/Materials Mutant | -7/Factory Resources | -11 -10 -10 -10 -9 -8 -7 ----------- Run | Yrd Mat Min Exi Min Mat Fac Matter Collected 681 | 158 11 151 . 43 318 . Remotely . | . . . . . . . Salvage Created 904 | . 65 130 . . 684 25 Parts 46 | . 4 6 . . 35 1 Haulers Intercepted . | . . . . . . . Recyclers Shooed 1 | . . 1 . . . . Parts Field Recycled . | . . . . . . . Retrieved Matter . | . . . . . . . Parts Self-Destructed . | . . . . . . . Prevented . | . . . . . . . Kills | -11 -10 -10 -10 -9 -8 -7 ------- Run | Yrd Mat Min Exi Min Mat Fac Combat Hostiles Destroyed 19 | . . 5 . . 13 1 Melee 6 | . . . . . 6 . Guns 5 | . . 5 . . . . Cannons 7 | . . . . . 7 . AOE 1 | . . . . . . 1 Classes Destroyed 9 | . 2 3 . . 3 1 Worker 2 | . . 1 . . . 1 Recycler 3 | . 1 . . . 2 . Watcher 3 | . 1 . . . 2 . Swarmer 6 | . . 3 . . 3 . Grunt 6 | . . . . . 6 . Sentry 3 | . . . . . 3 . Demolisher 2 | . . 2 . . . . Hunter 1 | . . . . . 1 . Programmer 1 | . . . . . . 1 Best Kill Streak 6 | . 2 4 . . 6 2 Combat Bots Only 5 | . . 3 . . 5 1 Max Kills in Single Turn 1 | . 1 1 . . 1 1 Gunslinging . | . . . . . . . Exploded 1 | . . . . . . 1 Melee 1 | . . . . . 1 . Uniques/NPCs Destroyed . | . . . . . . . Combat | -11 -10 -10 -10 -9 -8 -7 -------- Run | Yrd Mat Min Exi Min Mat Fac Hostile Shots Fired 304 | . 4 36 . . 71 193 Missed 92 | . 2 4 . . 14 72 Damage Taken 2108 | . 17 322 . . 635 1134 Core 1080 | . . 104 . . 276 700 Absorbed by Shields 26 | . . . . . . 26 Ignored by Resistances 643 | . 5 100 . . 185 353 Core Remaining (%) 69 | 100 . . . 58 49 . Volleys Fired 69 | . 3 16 9 . 37 4 Largest 2 | . 1 2 2 . 1 1 Hottest 100 | . 50 100 80 . 57 30 Shots Fired 83 | . 3 25 14 . 37 4 Gun 37 | . 3 25 9 . . . Cannon 37 | . . . . . 37 . Launcher 9 | . . . 5 . . 4 Special . | . . . . . . . Kinetic 37 | . . . . . 37 . Thermal 37 | . 3 25 9 . . . Explosive 9 | . . . 5 . . 4 Electromagnetic . | . . . . . . . Robot Hit Streak 8 | . 3 8 . . 5 5 Robot Miss Streak 4 | . . 2 . . 4 1 Penetration Max . | . . . . . . . Secondary Targets 1 | . . 1 . . . . Max Gunslinging Chain 1 | . . 1 . . . . Shots Hit Robots 67 | . 3 19 . . 35 10 Core Hits 36 | . 3 8 . . 18 7 Critical Kills 8 | . . . . . 8 . Critical Parts Destroyed 4 | . . . . . 4 . Critical Strikes 18 | . 1 2 . . 14 1 Burn 3 | . 1 2 . . . . Destroy 12 | . . . . . 12 . Sever 3 | . . . . . 2 1 Melee Attacks 19 | . . . . . 12 7 Impact . | . . . . . . . Slashing 19 | . . . . . 12 7 Piercing . | . . . . . . . Sneak Attacks . | . . . . . . . Combat Hostiles . | . . . . . . . Follow-up Attacks 1 | . . . . . . 1 Damage Inflicted 1711 | . 38 256 . . 1008 409 Guns 294 | . 38 256 . . . . Cannons 563 | . . . . . 563 . Explosions 204 | . . . . . . 204 Melee 650 | . . . . . 445 205 Ramming . | . . . . . . . Kinetic 563 | . . . . . 563 . Thermal 294 | . 38 256 . . . . Explosive 204 | . . . . . . 204 Electromagnetic . | . . . . . . . Impact . | . . . . . . . Slashing 650 | . . . . . 445 205 Piercing . | . . . . . . . Highest Corruption 1 | . . . . . . 1 Average Corruption 1 | . . . . . . 1 Corruption Purged . | . . . . . . . Corruption Blocked . | . . . . . . . Overload Shots . | . . . . . . . Overflow Damage 36 | . . . . . 23 13 Projectiles 15 | . . . . . 15 . Explosions . | . . . . . . . Melee 21 | . . . . . 8 13 Knockbacks 8 | . . . . . 8 . Impact . | . . . . . . . Kinetic 8 | . . . . . 8 . Secondary . | . . . . . . . Self-Inflicted Damage 2 | . . . . . . 2 Shots 1 | . . . . . . 1 Rammed . | . . . . . . . Targets Rammed . | . . . . . . . Kicked . | . . . . . . . Crushed . | . . . . . . . Highest Temperature 342 | . 24 342 105 . 204 15 Average Temperature 98 | . 12 149 45 . 91 7 Received Heat Transfer 896 | . 12 . . . 369 515 Effects 1 | . . 1 . . . . Short Circuit 1 | . . 1 . . . . Siege Activations . | . . . . . . . Robots Corrupted . | . . . . . . . Combat Hostiles . | . . . . . . . Parts Fried . | . . . . . . . Impact Corruptions . | . . . . . . . Robots Melted . | . . . . . . . Combat Hostiles . | . . . . . . . Parts Melted 3 | . 1 2 . . . . Heat Transferred 1073 | . 185 888 . . . . Parts Sabotaged . | . . . . . . . Parts Stolen . | . . . . . . . Parts Stripped . | . . . . . . . Power Chain Reactions . | . . . . . . . Alert | -11 -10 -10 -10 -9 -8 -7 ------- Run | Yrd Mat Min Exi Min Mat Fac Peak Influence 439 | . 12 95 . . 439 175 Initial 170 | . . 3 . . . 170 Average 82 | . 6 19 . . 226 143 Maximum Alert Level 2 | . . . . . 2 . Low Security (%) 86 | 100 100 100 . 100 40 100 Level 1 10 | . . . . . 44 . Level 2 3 | . . . . . 15 . Level 3 . | . . . . . . . Level 4 . | . . . . . . . Level 5 . | . . . . . . . High Security . | . . . . . . . Max Security . | . . . . . . . Squads Dispatched 4 | . . . . . 2 2 Investigation . | . . . . . . . Extermination 1 | . . . . . . 1 Reinforcement 3 | . . . . . 2 1 Assault . | . . . . . . . Garrison . | . . . . . . . Intercept . | . . . . . . . Searches Triggered . | . . . . . . . Construction Impeded 1 | . . . . . . 1 Haulers Reinforced . | . . . . . . . Active Scanning Responses . | . . . . . . . Cargo Convoy Interrupts . | . . . . . . . Stealth | -11 -10 -10 -10 -9 -8 -7 --------- Run | Yrd Mat Min Exi Min Mat Fac Distress Signals 2 | . . . . . 2 . Communications Jammed . | . . . . . . . Distress Signals . | . . . . . . . Times Spotted 36 | . 3 5 . . 23 5 Peak Tracking Total 7 | . 2 3 . . 7 4 Tactical Retreats 2 | . . . . . 1 1 Traps | -11 -10 -10 -10 -9 -8 -7 ------- Run | Yrd Mat Min Exi Min Mat Fac Traps Triggered 1 | . . . . . . 1 Indirectly . | . . . . . . . Trap Hack Attempts . | . . . . . . . Triggered . | . . . . . . . Disarmed . | . . . . . . . Reprogrammed . | . . . . . . . Reused . | . . . . . . . Traps Extracted . | . . . . . . . Installed . | . . . . . . . Triggered . | . . . . . . . Machines | -11 -10 -10 -10 -9 -8 -7 ---------- Run | Yrd Mat Min Exi Min Mat Fac Machines Disabled 3 | . . . . . 3 . Max in Single Turn 1 | . . . . . 1 . Machines Repaired . | . . . . . . . Machines Dismantled . | . . . . . . . Machines Sabotaged . | . . . . . . . Overloaded Fab Kills . | . . . . . . . Hacking | -11 -10 -10 -10 -9 -8 -7 --------- Run | Yrd Mat Min Exi Min Mat Fac Machines Accessed . | . . . . . . . Terminals . | . . . . . . . Fabricators . | . . . . . . . Repair Stations . | . . . . . . . Recycling Units . | . . . . . . . Scanalyzers . | . . . . . . . Garrison Access . | . . . . . . . Total Hacks . | . . . . . . . Successful . | . . . . . . . Failed . | . . . . . . . Catastrophic . | . . . . . . . Database Lockouts . | . . . . . . . Manual . | . . . . . . . Terminals . | . . . . . . . Fabricators . | . . . . . . . Repair Stations . | . . . . . . . Recycling Units . | . . . . . . . Scanalyzers . | . . . . . . . Garrison Access . | . . . . . . . Terminal Hacks . | . . . . . . . Fabricator Hacks . | . . . . . . . Repair Station Hacks . | . . . . . . . Recycling Unit Hacks . | . . . . . . . Scanalyzer . | . . . . . . . Garrison Access Hacks . | . . . . . . . Unauthorized Hacks . | . . . . . . . Terminals . | . . . . . . . Fabricators . | . . . . . . . Repair Stations . | . . . . . . . Recycling Units . | . . . . . . . Scanalyzers . | . . . . . . . Garrison Access . | . . . . . . . Data Cores Recovered . | . . . . . . . Used . | . . . . . . . Hacking Detections . | . . . . . . . Full Trace Events . | . . . . . . . Feedback Events . | . . . . . . . Feedback Blocked . | . . . . . . . Robot Schematics Acquired . | . . . . . . . Robots Built . | . . . . . . . Authchips . | . . . . . . . Time . | . . . . . . . Total Robot Build Rating . | . . . . . . . Part Schematics Acquired . | . . . . . . . Parts Built . | . . . . . . . Authchips . | . . . . . . . Time . | . . . . . . . Total Part Build Rating . | . . . . . . . Parts Repaired . | . . . . . . . Time . | . . . . . . . Parts Recycled . | . . . . . . . Recycled Matter . | . . . . . . . Retrieved Matter . | . . . . . . . Retrieved Components . | . . . . . . . Parts Scanalyzed . | . . . . . . . Part Schematics Acquired . | . . . . . . . Parts Damaged . | . . . . . . . Bothacking | -11 -10 -10 -10 -9 -8 -7 ------------ Run | Yrd Mat Min Exi Min Mat Fac Used RIF Installer . | . . . . . . . Robots Hacked . | . . . . . . . Non-combat . | . . . . . . . Combat . | . . . . . . . Robot Hacks Applied . | . . . . . . . Relay Couplers Released . | . . . . . . . Fabnet Peak Effective % . | . . . . . . . Robots Rewired . | . . . . . . . Allies Hacked . | . . . . . . . Hacks Repelled . | . . . . . . . Allies | -11 -10 -10 -10 -9 -8 -7 -------- Run | Yrd Mat Min Exi Min Mat Fac Total Allies . | . . . . . . . Largest Group . | . . . . . . . Highest-Rated Group . | . . . . . . . Highest-Rated Ally . | . . . . . . . Total Orders . | . . . . . . . Ally Attacks . | . . . . . . . Total Damage . | . . . . . . . Kills . | . . . . . . . Allies Corrupted . | . . . . . . . Allies Melted . | . . . . . . . Intel | -11 -10 -10 -10 -9 -8 -7 ------- Run | Yrd Mat Min Exi Min Mat Fac Robot Analysis Total . | . . . . . . . Derelict Logs Recovered 1 | . . 1 . . . . Drone Launches . | . . . . . . . Drone Recoveries . | . . . . . . . Exploration | -11 -10 -10 -10 -9 -8 -7 ------------- Run | Yrd Mat Min Exi Min Mat Fac Turns Passed 1945 | 37 261 429 393 214 360 251 Spaces Moved 1418 | 36 205 289 308 113 210 257 Core 44 | 21 . 2 . . . 21 Treads . | . . . . . . . Legs 55 | . . . . . . 55 Wheels 163 | 15 17 131 . . . . Hover . | . . . . . . . Flight 1156 | . 188 156 308 113 210 181 Fastest Speed 31 | 50 90 80 120 120 32 31 Average Speed 108 | 68 122 112 120 175 98 65 Slowest Speed 280 | 100 125 150 120 280 280 200 Overloaded Moves . | . . . . . . . Propulsion Burnouts . | . . . . . . . Robots Hopped . | . . . . . . . Cave-ins Triggered . | . . . . . . . Exploration Rate (%) 36 | 3 49 58 79 33 23 8 Regions Visited 6 Branch Regions 3 Pre-discovered Areas 1 | . . 1 . . . . Known Exits Taken . | . . . . . . . Unknown Exits Taken 6 | 1 1 1 1 1 1 . Scrap Searched 1 | . . . . 1 . . Spaces Dug . | . . . . . . . Terrain Destroyed 35 | . . . 13 . 15 7 Melee . | . . . . . . . Projectile 15 | . . . . . 15 . AOE 20 | . . . 13 . . 7 Terrain Rammed . | . . . . . . . Walls Destroyed . | . . . . . . . Machines Disabled . | . . . . . . . Actions | -11 -10 -10 -10 -9 -8 -7 --------- Run | Yrd Mat Min Exi Min Mat Fac Total 1700 | 46 213 367 317 130 304 323 Wait 127 | . . 56 . 13 22 36 Move 1412 | 35 204 288 307 112 209 257 Hop . | . . . . . . . Pick Up 22 | 5 2 2 . 2 9 2 Fast Attach 8 | 3 . . . . 5 . Attach 22 | 3 1 4 1 1 7 5 Detach 2 | . 1 . . 1 . . Swap 3 | . 1 . . 1 1 . Drop 5 | . 1 1 . . 3 . Fire 69 | . 3 16 9 . 37 4 Melee 17 | . . . . . 11 6 Ram . | . . . . . . . Kick . | . . . . . . . Crush . | . . . . . . . Escape Stasis 13 | . . . . . . 13 Rewire . | . . . . . . . Trap . | . . . . . . . Miscellaneous . | . . . . . . . Route ------- -11/Scrapyard -10/Materials (discovered 2 exits: [*Min x2]) -10/Mines (discovered 2 exits: [*Mat] / *Exi) -10/Exiles (discovered 2 exits: [*Min x2]) -9/Mines -8/Materials -7/Factory History --------- Turn | Location | Event 8 | -11/Scrapyard | Discovered new exit (range 16) 38 | -11/Scrapyard | Entered Materials 273 | -10/Materials | Discovered new exit (range 12) 273 | -10/Materials | Discovered new exit (range 17) 299 | -10/Materials | Entered Mines 302 | -10/Mines | Build established: Mutant 318 | -10/Mines | Learned location of Zion (-6) 368 | -10/Mines | Discovered new exit (range 5) 392 | -10/Mines | Assembled infested the area 434 | -10/Mines | Met 8R-AWN 511 | -10/Mines | Lost 3 parts (1p2n) 724 | -10/Mines | Discovered new exit (range 5) 728 | -10/Mines | Entered Exiles 773 | -10/Exiles | Discovered new exit (range 15) 808 | -10/Exiles | Welcomed by 8R-AWN 834 | -10/Exiles | Met EX-HEX 878 | -10/Exiles | Met EX-DEC 923 | -10/Exiles | Visited The Gauntlet 1108 | -10/Exiles | Discovered new exit (range 12) 1121 | -10/Exiles | Entered Mines 1223 | -9/Mines | A weapon hastily lodged in a ceiling crevice suddenly fell to the ground 1312 | -9/Mines | Discovered new exit (range 8) 1335 | -9/Mines | Entered Materials 1335 | -8/Materials | Evolved 4 slots: Propulsion x1, Utility x3 1671 | -8/Materials | Lost 4 parts (1p2n1u) 1683 | -8/Materials | Core integrity fell below 50% 1689 | -8/Materials | Discovered new exit (range 5) 1695 | -8/Materials | Entered Factory 1695 | -7/Factory | Evolved 2 slots: Propulsion x1, Utility x1 1853 | -7/Factory | Core integrity fell below 50% 1883 | -7/Factory | Lost 8 parts (1p4n2u1w) 1884 | -7/Factory | Core integrity fell below 20% 1946 | -7/Factory | Destroyed by G-47 Trooper with Particle Gun Last Messages --------------- 01857_ Great Axe severed. 01868_ Acquired Imp. Carbon-fiber Leg. 01884_ Terrain Scan Processor destroyed. 01908_ K-01 Serf cleans the Recycling Unit. 01922_ C-30 ARC bursts open, deploying its payload. 01922_ P-60 Hacker unfolds itself. 01934_ Lgt. Nuclear Core destroyed. 01935_ K-01 Serf collects debris. 01938_ K-01 Serf destroyed. 01940_ U-05 Engineer lays Concrete. 01942_ P-60 Hacker destroyed. 01942_ U-05 Engineer lays Concrete. 01943_ K-01 Serf collects debris. 01944_ U-05 Engineer lays Concrete. 01944_ ALERT: Construction progress impeded, dispatching reinforcements to local area. 01945_ ALERT: Rogue bot located, Programmers report to Factory Zone 3I. 01945_ U-05 Engineer lays Concrete. 01946_ Critical hit (Burn: +37). Map ----- +----------------------------------------------------+ | ?????????????????????????????????????????????????? | | ?????????????????????????????????????????????????? | | ?????????????????????????????????????????????????? | | ?????????????????????????????????????????????????? | | ?????????????????????????????????????????????????? | | ?????????????????????????????????????????????????? | | ######+##########????????????????????????????????? | | ! #????????????????????????????????? | | #??????????????????? #???????????? | | """ """ #????????????????? #???????????? | | """ """ # ??????????????? #???????????? | | """ """ # ?????????????? #???????????? | | #### # ???????????? #???????????? | | !??# * """ ###/############ #???????????? | | !! # """ #???????????? | | # "Y" """ #???????????? | | "" # """ u #???????????? | | "" # #???????????? | | "" # #???????????? | | #########+############gg #???????????? | | #???????????????????# u #####???????? | | ###???????????????????## k u ??????? | | ??????????????????????# ??????? | | ??????????????????????# ??????? | | ???????????????????????# k ??????? | | ????????????????????????#@ ??????? | | ????????????????????????# ####+#######???????? | | ????????????????????????# #???? ????????????? | | ????????????????????????# u #????? ! ??????????? | | ????????????????????????# r #?????? ?????????? | | ????????????????????????# ?????????????????? | | ????????????????????????# ##+????????????????? | | ????????????????????????# #?? ???????????????? | | ????????????????????????# #???"??????????????? | | ????????????????????????# #????"?????????????? | | ?????????????????????????u #??????????????????? | | ????????????????????????? +??????????????????? | | ????????????????????????? #??????????????????? | | ????????????????????????? #??????????????????? | | ????????????????????????? #??????????????????? | | ?????????????????????????######??????????????????? | | ?????????????????????????????????????????????????? | | ?????????????????????????????????????????????????? | | ?????????????????????????????????????????????????? | | ?????????????????????????????????????????????????? | | ?????????????????????????????????????????????????? | | ?????????????????????????????????????????????????? | | ?????????????????????????????????????????????????? | | ?????????????????????????????????????????????????? | | ?????????????????????????????????????????????????? | +----------------------------------------------------+ Best States ------------- Heat Dissipation 34 Energy Generation 14 Energy Capacity 265 Matter Stores 300 Matter Capacity 300 Sight Range 18 Robot Scan Range 14 Terrain Scan Range 16 Terrain Scan Density 85 Resistance: KI 20 Resistance: TH 20 Resistance: EX 20 Resistance: EM 20 Resistance: I 20 Resistance: S 20 Resistance: P 20 Evasion (%) 63 Offensive Hacking 10 Item Schematics ----------------- None Robot Schematics ------------------ None Fabricated ------------ Nothing Alien Tech Used ----------------- None Achievements -------------- None Challenges ------------ None Game ------ Seed FlyingCarbideSegregator Manual? 0 Play Time 00:21:05 Cumulative 17.2 hours Start 2024.05.31 @ 04:42:23 End 2024.05.31 @ 05:00:26 Sessions 1 Manual Loads 0 Difficulty Adventurer Special Mode None Game No. 24 Rogue 0 Adventurer 24 Explorer 0 Win Type - Total 0 Types 0/0/0/0/0/0/0/0/0 Lore% 8 Gallery% 27 Achievement% 23 Wizard Run 0 Options --------- Layout 1 ASCII 0 Keyboard 0 Movement Mouse Keybinds 0 Fullscreen 2 Font 42/SmallcapsGlow Map View 56x38 Zoom Use 0% Tactical HUD 1 Map Filters NONE Filters NONE Steam 1 RUN: b0c8ec1f-934f-4043-8aee-a000bc37f2a3